[Event "Titled Tuesday Blitz June 21 Early 2022"]
[White "Mangialardo, Tiago Carvalho"]
[Black "Jakubowska, Anna"]
[WhiteFideId "2130718"]
[BlackFideId "1121952"]
[WhiteElo "2103"]
[BlackElo "1878"]
[Result "0-1"]
[Round "10"]
[TimeControl "180+1"]
[Date "2022.06.22"]
[WhiteClock "0:00:02"]
[BlackClock "0:01:30"]

1. e4 {[%clk 0:03:00]}  Nf6 {[%clk 0:02:55]} 2. Nc3 {[%clk 0:03:00]}  d5 {[%clk 0:02:55]} 3. exd5 {[%clk 0:02:59]}  Nxd5 {[%clk 0:02:54]} 4. Nxd5 {[%clk 0:02:59]}  Qxd5 {[%clk 0:02:55]} 5. d4 {[%clk 0:03:00]}  Nc6 {[%clk 0:02:54]} 6. Nf3 {[%clk 0:03:00]}  Bg4 {[%clk 0:02:53]} 7. c3 {[%clk 0:02:58]}  O-O-O {[%clk 0:02:50]} 8. Qb3 {[%clk 0:02:23]}  Bxf3 {[%clk 0:02:48]} 9. gxf3 {[%clk 0:02:19]}  Qxf3 {[%clk 0:02:48]} 10. Rg1 {[%clk 0:02:17]}  e5 {[%clk 0:02:45]} 11. Rg3 {[%clk 0:02:12]}  Qe4+ {[%clk 0:02:38]} 12. Re3 {[%clk 0:02:09]}  Qh1 {[%clk 0:02:29]} 13. dxe5 {[%clk 0:01:15]}  Bc5 {[%clk 0:02:25]} 14. Re2 {[%clk 0:00:45]}  Rhe8 {[%clk 0:02:18]} 15. f4 {[%clk 0:00:42]}  g5 {[%clk 0:02:10]} 16. Qxf7 {[%clk 0:00:35]}  gxf4 {[%clk 0:01:59]} 17. Qxf4 {[%clk 0:00:21]}  Kb8 {[%clk 0:01:53]} 18. Qg3 {[%clk 0:00:18]}  Nxe5 {[%clk 0:01:32]} 19. Rxe5 {[%clk 0:00:10]}  Bd6 {[%clk 0:01:32]} 20. Bf4 {[%clk 0:00:03]}  Bxe5 {[%clk 0:01:32]} 21. Bxe5 {[%clk 0:00:04]}  Qe4+ {[%clk 0:01:32]} 22. Kf2 {[%clk 0:00:02]}  Rxe5 {[%clk 0:01:31]} 23. Re1 {[%clk 0:00:01]}  Qxe1+ {[%clk 0:01:30]} 24. Kg2 {[%clk 0:00:02]}  Qxg3+ {[%clk 0:01:30]} 0-1


[Site "https://www.chess.com"]

[Event "Titled Tuesday Blitz June 21 Early 2022"]
[White "Migot, Tangi"]
[Black "Begunov, Konstantin"]
[WhiteFideId "662445"]
[BlackFideId "4118510"]
[WhiteElo "2500"]
[BlackElo "2262"]
[Result "0-1"]
[Round "10"]
[TimeControl "180+1"]
[Date "2022.06.22"]
[WhiteClock "0:00:35"]
[BlackClock "0:00:35"]

1. d4 {[%clk 0:03:00]}  d5 {[%clk 0:03:00]} 2. c4 {[%clk 0:03:01]}  c6 {[%clk 0:03:00]} 3. Nc3 {[%clk 0:02:59]}  Nf6 {[%clk 0:03:01]} 4. e3 {[%clk 0:03:00]}  a6 {[%clk 0:03:01]} 5. cxd5 {[%clk 0:02:59]}  cxd5 {[%clk 0:03:01]} 6. Bd3 {[%clk 0:02:56]}  Nc6 {[%clk 0:03:01]} 7. a3 {[%clk 0:02:55]}  Bg4 {[%clk 0:03:00]} 8. Nge2 {[%clk 0:02:54]}  e6 {[%clk 0:03:00]} 9. O-O {[%clk 0:02:54]}  Bd6 {[%clk 0:03:00]} 10. Qb3 {[%clk 0:02:50]}  Na5 {[%clk 0:02:57]} 11. Qc2 {[%clk 0:02:47]}  Rc8 {[%clk 0:02:42]} 12. h3 {[%clk 0:02:47]}  Bh5 {[%clk 0:02:42]} 13. Nf4 {[%clk 0:02:47]}  Bg6 {[%clk 0:02:34]} 14. Nxg6 {[%clk 0:02:46]}  hxg6 {[%clk 0:02:33]} 15. Bd2 {[%clk 0:02:42]}  Nc4 {[%clk 0:02:31]} 16. Rfc1 {[%clk 0:02:35]}  Bb8 {[%clk 0:02:25]} 17. Bxc4 {[%clk 0:02:27]}  Rxc4 {[%clk 0:02:23]} 18. Qd3 {[%clk 0:02:24]}  Qc7 {[%clk 0:02:15]} 19. f4 {[%clk 0:02:24]}  O-O {[%clk 0:02:10]} 20. b3 {[%clk 0:02:21]}  Rc6 {[%clk 0:02:08]} 21. Ne2 {[%clk 0:02:20]}  Ne4 {[%clk 0:02:00]} 22. Rxc6 {[%clk 0:02:17]}  Qxc6 {[%clk 0:02:01]} 23. Rc1 {[%clk 0:02:14]}  Qd7 {[%clk 0:01:59]} 24. Bb4 {[%clk 0:02:10]}  Rc8 {[%clk 0:01:56]} 25. Kf1 {[%clk 0:01:48]}  Rxc1+ {[%clk 0:01:51]} 26. Nxc1 {[%clk 0:01:48]}  g5 {[%clk 0:01:49]} 27. Ne2 {[%clk 0:01:21]}  gxf4 {[%clk 0:01:44]} 28. exf4 {[%clk 0:01:15]}  g5 {[%clk 0:01:21]} 29. fxg5 {[%clk 0:00:55]}  Qc7 {[%clk 0:01:14]} 30. Qf3 {[%clk 0:00:54]}  Qc2 {[%clk 0:00:56]} 31. g4 {[%clk 0:00:45]}  Nxg5 {[%clk 0:00:45]} 32. Qc3 {[%clk 0:00:42]}  Qd1+ {[%clk 0:00:38]} 33. Qe1 {[%clk 0:00:40]}  Qd3 {[%clk 0:00:38]} 34. Qg3 {[%clk 0:00:35]}  Bxg3 {[%clk 0:00:35]} 0-1


[Site "https://www.chess.com"]

[Event "Titled Tuesday Blitz June 21 Early 2022"]
[White "Mindlin, Alon"]
[Black "Oparin, Grigoriy"]
[WhiteFideId "2800071"]
[BlackFideId "24125890"]
[WhiteElo "2390"]
[BlackElo "2639"]
[Result "0-1"]
[Round "10"]
[TimeControl "180+1"]
[Date "2022.06.21"]
[WhiteClock "0:00:10"]
[BlackClock "0:00:42"]

1. d4 {[%clk 0:03:00]}  Nf6 {[%clk 0:02:59]} 2. c4 {[%clk 0:03:01]}  e6 {[%clk 0:03:00]} 3. Nc3 {[%clk 0:03:01]}  Bb4 {[%clk 0:03:00]} 4. e3 {[%clk 0:03:01]}  O-O {[%clk 0:03:00]} 5. Bd3 {[%clk 0:03:02]}  c5 {[%clk 0:03:00]} 6. Nf3 {[%clk 0:03:02]}  Bxc3+ {[%clk 0:02:57]} 7. bxc3 {[%clk 0:03:01]}  d6 {[%clk 0:02:58]} 8. O-O {[%clk 0:03:00]}  Nc6 {[%clk 0:02:59]} 9. e4 {[%clk 0:02:59]}  e5 {[%clk 0:02:59]} 10. d5 {[%clk 0:02:58]}  Ne7 {[%clk 0:02:59]} 11. Nh4 {[%clk 0:02:59]}  Ng6 {[%clk 0:02:58]} 12. Nf5 {[%clk 0:02:59]}  Nf4 {[%clk 0:02:58]} 13. Bc2 {[%clk 0:02:53]}  g6 {[%clk 0:02:57]} 14. Nh6+ {[%clk 0:02:48]}  Kg7 {[%clk 0:02:55]} 15. g3 {[%clk 0:02:49]}  Nh3+ {[%clk 0:02:52]} 16. Kg2 {[%clk 0:02:48]}  Ng8 {[%clk 0:02:39]} 17. Nxg8 {[%clk 0:02:33]}  Rxg8 {[%clk 0:02:39]} 18. f4 {[%clk 0:02:15]}  exf4 {[%clk 0:02:37]} 19. gxf4 {[%clk 0:02:12]}  Qh4 {[%clk 0:02:35]} 20. Qf3 {[%clk 0:02:12]}  h5 {[%clk 0:02:11]} 21. e5 {[%clk 0:01:55]}  Qg4+ {[%clk 0:01:57]} 22. Qxg4 {[%clk 0:01:46]}  hxg4 {[%clk 0:01:58]} 23. exd6 {[%clk 0:01:45]}  Bf5 {[%clk 0:01:58]} 24. Bxf5 {[%clk 0:01:42]}  gxf5 {[%clk 0:01:59]} 25. Re1 {[%clk 0:01:38]}  Rgd8 {[%clk 0:01:57]} 26. Re7 {[%clk 0:01:23]}  b6 {[%clk 0:01:56]} 27. a4 {[%clk 0:01:09]}  Rxd6 {[%clk 0:01:54]} 28. a5 {[%clk 0:01:10]}  Kf6 {[%clk 0:01:53]} 29. Re5 {[%clk 0:01:06]}  Ng5 {[%clk 0:01:06]} 30. axb6 {[%clk 0:00:42]}  Rxb6 {[%clk 0:01:07]} 31. Re2 {[%clk 0:00:09]}  Ne4 {[%clk 0:01:05]} 32. Be3 {[%clk 0:00:09]}  a5 {[%clk 0:00:59]} 33. Rea2 {[%clk 0:00:09]}  a4 {[%clk 0:00:43]} 34. Rb2 {[%clk 0:00:10]}  Rxb2+ {[%clk 0:00:42]} 0-1


[Site "https://www.chess.com"]

[Event "Titled Tuesday Blitz June 21 Early 2022"]
[White "Mrudul Dehankar"]
[Black "Ciuffoletti, Paolo"]
[WhiteFideId "25096990"]
[BlackFideId "807630"]
[WhiteElo "1766"]
[BlackElo "2143"]
[Result "1-0"]
[Round "10"]
[TimeControl "180+1"]
[Date "2022.06.22"]
[WhiteClock "0:00:09"]
[BlackClock "0:00:01"]

1. e4 {[%clk 0:03:00]}  c5 {[%clk 0:02:59]} 2. Nf3 {[%clk 0:03:00]}  Nc6 {[%clk 0:02:59]} 3. d4 {[%clk 0:03:00]}  cxd4 {[%clk 0:03:00]} 4. Nxd4 {[%clk 0:03:00]}  Nf6 {[%clk 0:03:00]} 5. Nc3 {[%clk 0:03:01]}  e5 {[%clk 0:03:01]} 6. Ndb5 {[%clk 0:03:01]}  d6 {[%clk 0:03:01]} 7. Bg5 {[%clk 0:02:57]}  a6 {[%clk 0:03:01]} 8. Na3 {[%clk 0:02:57]}  b5 {[%clk 0:03:01]} 9. Nd5 {[%clk 0:02:57]}  Be7 {[%clk 0:03:01]} 10. Bxf6 {[%clk 0:02:58]}  Bxf6 {[%clk 0:03:01]} 11. c3 {[%clk 0:02:58]}  O-O {[%clk 0:03:01]} 12. Nc2 {[%clk 0:02:59]}  Rb8 {[%clk 0:03:01]} 13. Nce3 {[%clk 0:02:54]}  a5 {[%clk 0:02:59]} 14. Qf3 {[%clk 0:02:36]}  Bg5 {[%clk 0:02:45]} 15. h4 {[%clk 0:02:34]}  Bh6 {[%clk 0:02:38]} 16. g4 {[%clk 0:02:22]}  Bxe3 {[%clk 0:02:22]} 17. Nxe3 {[%clk 0:01:59]}  b4 {[%clk 0:02:04]} 18. Bd3 {[%clk 0:01:13]}  bxc3 {[%clk 0:01:47]} 19. bxc3 {[%clk 0:01:12]}  Be6 {[%clk 0:01:39]} 20. Kf1 {[%clk 0:01:05]}  Ne7 {[%clk 0:01:31]} 21. h5 {[%clk 0:01:02]}  f6 {[%clk 0:01:13]} 22. Kg2 {[%clk 0:00:47]}  Qb6 {[%clk 0:00:47]} 23. Rhd1 {[%clk 0:00:33]}  Qc5 {[%clk 0:00:45]} 24. Qe2 {[%clk 0:00:23]}  d5 {[%clk 0:00:39]} 25. exd5 {[%clk 0:00:19]}  Bxd5+ {[%clk 0:00:35]} 26. Nxd5 {[%clk 0:00:19]}  Nxd5 {[%clk 0:00:34]} 27. Bc4 {[%clk 0:00:16]}  Rfd8 {[%clk 0:00:30]} 28. Rxd5 {[%clk 0:00:15]}  Rxd5 {[%clk 0:00:28]} 29. Rd1 {[%clk 0:00:15]}  Rd8 {[%clk 0:00:13]} 30. Rxd5 {[%clk 0:00:15]}  Rxd5 {[%clk 0:00:10]} 31. Qe4 {[%clk 0:00:15]}  Qf8 {[%clk 0:00:01]} 32. Qxd5+ {[%clk 0:00:14]}  Kh8 {[%clk 0:00:01]} 33. Qd7 {[%clk 0:00:11]}  g6 {[%clk 0:00:01]} 34. h6 {[%clk 0:00:09]} 1-0


[Site "https://www.chess.com"]

[Event "Titled Tuesday Blitz June 21 Early 2022"]
[White "Nunez V, Gustavo Eduardo"]
[Black "Kalaiyalahan, Akshaya"]
[WhiteFideId "4403690"]
[BlackFideId "422894"]
[WhiteElo "2228"]
[BlackElo "1913"]
[Result "0-1"]
[Round "10"]
[TimeControl "180+1"]
[Date "2022.06.22"]
[WhiteClock "0:00:30"]
[BlackClock "0:00:08"]

1. e4 {[%clk 0:03:00]}  e5 {[%clk 0:02:58]} 2. Nf3 {[%clk 0:03:00]}  d6 {[%clk 0:02:59]} 3. d4 {[%clk 0:03:00]}  exd4 {[%clk 0:03:00]} 4. Nxd4 {[%clk 0:03:00]}  Nf6 {[%clk 0:02:59]} 5. Nc3 {[%clk 0:03:00]}  g6 {[%clk 0:02:59]} 6. Bc4 {[%clk 0:02:59]}  Bg7 {[%clk 0:03:00]} 7. O-O {[%clk 0:03:00]}  O-O {[%clk 0:02:59]} 8. f4 {[%clk 0:03:00]}  Re8 {[%clk 0:02:54]} 9. Re1 {[%clk 0:02:55]}  c6 {[%clk 0:02:50]} 10. h3 {[%clk 0:02:54]}  Nbd7 {[%clk 0:02:43]} 11. Nf3 {[%clk 0:02:48]}  Nc5 {[%clk 0:02:38]} 12. Ng5 {[%clk 0:02:47]}  Be6 {[%clk 0:02:19]} 13. Nxe6 {[%clk 0:02:46]}  fxe6 {[%clk 0:02:19]} 14. e5 {[%clk 0:02:43]}  Nd5 {[%clk 0:02:08]} 15. Bd2 {[%clk 0:01:56]}  dxe5 {[%clk 0:02:01]} 16. fxe5 {[%clk 0:01:56]}  Nd7 {[%clk 0:01:56]} 17. Bxd5 {[%clk 0:01:41]}  exd5 {[%clk 0:01:48]} 18. e6 {[%clk 0:01:42]}  Nf8 {[%clk 0:01:45]} 19. Qg4 {[%clk 0:01:38]}  Qf6 {[%clk 0:01:41]} 20. e7 {[%clk 0:01:19]}  Rxe7 {[%clk 0:01:38]} 21. Rxe7 {[%clk 0:01:19]}  Qxe7 {[%clk 0:01:34]} 22. Re1 {[%clk 0:01:19]}  Qc5+ {[%clk 0:01:29]} 23. Kh1 {[%clk 0:01:18]}  Qf2 {[%clk 0:01:08]} 24. Re2 {[%clk 0:01:00]}  Qf7 {[%clk 0:01:05]} 25. h4 {[%clk 0:00:57]}  h5 {[%clk 0:00:59]} 26. Qg3 {[%clk 0:00:52]}  Qf1+ {[%clk 0:00:13]} 27. Kh2 {[%clk 0:00:52]}  Bxc3 {[%clk 0:00:13]} 28. Rf2 {[%clk 0:00:49]}  Be5 {[%clk 0:00:13]} 29. Rxf1 {[%clk 0:00:46]}  Bxg3+ {[%clk 0:00:12]} 30. Kxg3 {[%clk 0:00:47]}  Re8 {[%clk 0:00:11]} 31. Rf2 {[%clk 0:00:45]}  Re4 {[%clk 0:00:12]} 32. Bh6 {[%clk 0:00:44]}  Ne6 {[%clk 0:00:11]} 33. Kh3 {[%clk 0:00:43]}  d4 {[%clk 0:00:11]} 34. Rf6 {[%clk 0:00:40]}  Kh7 {[%clk 0:00:11]} 35. Bg5 {[%clk 0:00:37]}  Ng7 {[%clk 0:00:10]} 36. Rf7 {[%clk 0:00:37]}  c5 {[%clk 0:00:08]} 37. Bf6 {[%clk 0:00:36]}  Kg8 {[%clk 0:00:08]} 38. Rxg7+ {[%clk 0:00:37]}  Kf8 {[%clk 0:00:09]} 39. Rxb7 {[%clk 0:00:37]}  Re3+ {[%clk 0:00:09]} 40. g3 {[%clk 0:00:37]}  Re2 {[%clk 0:00:10]} 41. c3 {[%clk 0:00:36]}  d3 {[%clk 0:00:09]} 42. Be7+ {[%clk 0:00:34]}  Rxe7 {[%clk 0:00:07]} 43. Rb8+ {[%clk 0:00:32]}  Re8 {[%clk 0:00:06]} 44. Rb7 {[%clk 0:00:31]}  Rd8 {[%clk 0:00:07]} 45. Rh7 {[%clk 0:00:29]}  d2 {[%clk 0:00:06]} 46. Rh8+ {[%clk 0:00:30]}  Ke7 {[%clk 0:00:06]} 47. Rh7+ {[%clk 0:00:30]}  Kf6 {[%clk 0:00:07]} 48. Rxa7 {[%clk 0:00:30]}  d1=Q {[%clk 0:00:06]} 49. Ra6+ {[%clk 0:00:29]}  Rd6 {[%clk 0:00:06]} 50. Rxd6+ {[%clk 0:00:27]}  Qxd6 {[%clk 0:00:07]} 51. b4 {[%clk 0:00:27]}  Qe6+ {[%clk 0:00:08]} 52. Kh2 {[%clk 0:00:27]}  c4 {[%clk 0:00:09]} 53. a4 {[%clk 0:00:27]}  Qe2+ {[%clk 0:00:09]} 54. Kh3 {[%clk 0:00:27]}  Qd3 {[%clk 0:00:10]} 55. a5 {[%clk 0:00:26]}  Qxc3 {[%clk 0:00:11]} 56. a6 {[%clk 0:00:27]}  Qxb4 {[%clk 0:00:11]} 57. a7 {[%clk 0:00:28]}  Qa5 {[%clk 0:00:11]} 58. g4 {[%clk 0:00:29]}  Qa3+ {[%clk 0:00:10]} 59. Kg2 {[%clk 0:00:29]}  hxg4 {[%clk 0:00:11]} 60. h5 {[%clk 0:00:28]}  gxh5 {[%clk 0:00:10]} 61. Kf2 {[%clk 0:00:28]}  Qxa7+ {[%clk 0:00:09]} 62. Kg3 {[%clk 0:00:29]}  Qg1+ {[%clk 0:00:08]} 63. Kh4 {[%clk 0:00:30]}  Qh2# {[%clk 0:00:08]} 0-1


[Site "https://www.chess.com"]

[Event "Titled Tuesday Blitz June 21 Early 2022"]
[White "Ovchinnikov, Vsevolod"]
[Black "Prokofiev, Valentyn"]
[WhiteFideId "24176842"]
[BlackFideId "14160161"]
[WhiteElo "2376"]
[BlackElo "2142"]
[Result "1-0"]
[Round "10"]
[TimeControl "180+1"]
[Date "2022.06.22"]
[WhiteClock "0:00:11"]
[BlackClock "0:00:02"]

1. d4 {[%clk 0:03:00]}  Nf6 {[%clk 0:02:59]} 2. c4 {[%clk 0:03:01]}  c5 {[%clk 0:02:59]} 3. d5 {[%clk 0:03:01]}  g6 {[%clk 0:02:59]} 4. Nc3 {[%clk 0:03:02]}  Bg7 {[%clk 0:03:00]} 5. e4 {[%clk 0:03:02]}  d6 {[%clk 0:03:00]} 6. Nf3 {[%clk 0:03:01]}  O-O {[%clk 0:03:01]} 7. Be2 {[%clk 0:03:02]}  e6 {[%clk 0:02:59]} 8. Nd2 {[%clk 0:03:00]}  Na6 {[%clk 0:02:58]} 9. O-O {[%clk 0:02:59]}  Nc7 {[%clk 0:02:56]} 10. a4 {[%clk 0:02:58]}  e5 {[%clk 0:02:52]} 11. g3 {[%clk 0:02:30]}  Nfe8 {[%clk 0:02:40]} 12. f4 {[%clk 0:02:29]}  f5 {[%clk 0:02:39]} 13. fxe5 {[%clk 0:02:26]}  Bxe5 {[%clk 0:02:39]} 14. Nf3 {[%clk 0:02:23]}  Bxc3 {[%clk 0:02:35]} 15. bxc3 {[%clk 0:02:24]}  fxe4 {[%clk 0:02:35]} 16. Ng5 {[%clk 0:02:23]}  Rxf1+ {[%clk 0:02:20]} 17. Qxf1 {[%clk 0:02:23]}  Qe7 {[%clk 0:02:17]} 18. Qf4 {[%clk 0:02:19]}  Nf6 {[%clk 0:02:13]} 19. Be3 {[%clk 0:02:16]}  Bd7 {[%clk 0:02:12]} 20. Rf1 {[%clk 0:02:15]}  Rf8 {[%clk 0:02:10]} 21. Qh4 {[%clk 0:02:12]}  Bxa4 {[%clk 0:01:52]} 22. Nh3 {[%clk 0:01:35]}  Rf7 {[%clk 0:00:49]} 23. Bg5 {[%clk 0:01:18]}  Nce8 {[%clk 0:00:47]} 24. Ra1 {[%clk 0:01:12]}  b5 {[%clk 0:00:37]} 25. cxb5 {[%clk 0:01:11]}  Bb3 {[%clk 0:00:38]} 26. c4 {[%clk 0:00:20]}  Qe5 {[%clk 0:00:38]} 27. Rf1 {[%clk 0:00:21]}  Bxc4 {[%clk 0:00:37]} 28. Bxc4 {[%clk 0:00:19]}  Qd4+ {[%clk 0:00:38]} 29. Kg2 {[%clk 0:00:19]}  Qxc4 {[%clk 0:00:37]} 30. Bxf6 {[%clk 0:00:20]}  Nxf6 {[%clk 0:00:32]} 31. Rxf6 {[%clk 0:00:20]}  Qxd5 {[%clk 0:00:13]} 32. Rxf7 {[%clk 0:00:19]}  Qxf7 {[%clk 0:00:12]} 33. Qd8+ {[%clk 0:00:19]}  Kg7 {[%clk 0:00:12]} 34. Nf4 {[%clk 0:00:19]}  Qa2+ {[%clk 0:00:10]} 35. Kh3 {[%clk 0:00:19]}  Qf7 {[%clk 0:00:09]} 36. Qxd6 {[%clk 0:00:19]}  Qf5+ {[%clk 0:00:10]} 37. Kg2 {[%clk 0:00:20]}  h5 {[%clk 0:00:10]} 38. Qe7+ {[%clk 0:00:17]}  Kh6 {[%clk 0:00:11]} 39. h4 {[%clk 0:00:15]}  c4 {[%clk 0:00:10]} 40. Qb4 {[%clk 0:00:14]}  c3 {[%clk 0:00:03]} 41. Qxc3 {[%clk 0:00:13]}  Kh7 {[%clk 0:00:04]} 42. Qc7+ {[%clk 0:00:12]}  Kh6 {[%clk 0:00:05]} 43. Qb8 {[%clk 0:00:12]}  Kh7 {[%clk 0:00:04]} 44. Qxa7+ {[%clk 0:00:12]}  Kh6 {[%clk 0:00:05]} 45. Qb8 {[%clk 0:00:10]}  Kh7 {[%clk 0:00:05]} 46. Qc7+ {[%clk 0:00:11]}  Kh6 {[%clk 0:00:06]} 47. Qd8 {[%clk 0:00:10]}  Kg7 {[%clk 0:00:06]} 48. Qd4+ {[%clk 0:00:10]}  Kh6 {[%clk 0:00:06]} 49. b6 {[%clk 0:00:11]}  Qf8 {[%clk 0:00:03]} 50. b7 {[%clk 0:00:10]}  e3 {[%clk 0:00:02]} 51. Qxe3 {[%clk 0:00:11]}  Qb4 {[%clk 0:00:02]} 52. Nd5+ {[%clk 0:00:11]} 1-0


[Site "https://www.chess.com"]

[Event "Titled Tuesday Blitz June 21 Early 2022"]
[White "Papp, Levente"]
[Black "Avazkhonov, Alikhon"]
[WhiteFideId "751243"]
[BlackFideId "14208504"]
[WhiteElo "2308"]
[BlackElo "1739"]
[Result "1-0"]
[Round "10"]
[TimeControl "180+1"]
[Date "2022.06.22"]
[WhiteClock "0:00:20"]
[BlackClock "0:00:03"]

1. d4 {[%clk 0:03:00]}  d5 {[%clk 0:02:59]} 2. Nf3 {[%clk 0:02:59]}  c6 {[%clk 0:02:59]} 3. g3 {[%clk 0:03:00]}  Bg4 {[%clk 0:02:57]} 4. Bg2 {[%clk 0:03:00]}  Nf6 {[%clk 0:02:56]} 5. Ne5 {[%clk 0:02:58]}  Bf5 {[%clk 0:02:56]} 6. c4 {[%clk 0:02:56]}  e6 {[%clk 0:02:56]} 7. O-O {[%clk 0:02:56]}  Bd6 {[%clk 0:02:56]} 8. Nc3 {[%clk 0:02:55]}  O-O {[%clk 0:02:54]} 9. Qb3 {[%clk 0:02:50]}  Qc7 {[%clk 0:02:52]} 10. Bf4 {[%clk 0:02:36]}  Bg6 {[%clk 0:02:32]} 11. Nxg6 {[%clk 0:02:26]}  hxg6 {[%clk 0:02:31]} 12. Bxd6 {[%clk 0:02:26]}  Qxd6 {[%clk 0:02:31]} 13. Qxb7 {[%clk 0:02:26]}  Nbd7 {[%clk 0:02:30]} 14. c5 {[%clk 0:02:25]}  Qb8 {[%clk 0:02:12]} 15. Qxc6 {[%clk 0:02:09]}  Qxb2 {[%clk 0:02:11]} 16. Rfc1 {[%clk 0:02:03]}  Rab8 {[%clk 0:01:51]} 17. Qa6 {[%clk 0:01:34]}  Rfc8 {[%clk 0:01:27]} 18. Bf1 {[%clk 0:00:54]}  e5 {[%clk 0:01:24]} 19. e3 {[%clk 0:00:53]}  exd4 {[%clk 0:01:07]} 20. exd4 {[%clk 0:00:53]}  Qd2 {[%clk 0:01:07]} 21. Qd3 {[%clk 0:00:50]}  Qh6 {[%clk 0:00:44]} 22. Rab1 {[%clk 0:00:43]}  Qh5 {[%clk 0:00:24]} 23. Rxb8 {[%clk 0:00:42]}  Nxb8 {[%clk 0:00:24]} 24. Re1 {[%clk 0:00:25]}  Nc6 {[%clk 0:00:23]} 25. Nb5 {[%clk 0:00:24]}  Rd8 {[%clk 0:00:16]} 26. Nd6 {[%clk 0:00:23]}  Ng4 {[%clk 0:00:08]} 27. h3 {[%clk 0:00:23]}  Nh6 {[%clk 0:00:07]} 28. Bg2 {[%clk 0:00:20]}  Nf5 {[%clk 0:00:06]} 29. g4 {[%clk 0:00:19]}  Qg5 {[%clk 0:00:03]} 30. gxf5 {[%clk 0:00:20]} 1-0


[Site "https://www.chess.com"]

[Event "Titled Tuesday Blitz June 21 Early 2022"]
[White "Petrova, Irina"]
[Black "Dhanush, Bharadwaj"]
[WhiteFideId "14124122"]
[BlackFideId "25058746"]
[WhiteElo "1993"]
[BlackElo "2291"]
[Result "0-1"]
[Round "10"]
[TimeControl "180+1"]
[Date "2022.06.22"]
[WhiteClock "0:00:17"]
[BlackClock "0:00:31"]

1. e4 {[%clk 0:03:00]}  c6 {[%clk 0:03:00]} 2. d4 {[%clk 0:03:00]}  d5 {[%clk 0:02:59]} 3. e5 {[%clk 0:03:00]}  Bf5 {[%clk 0:02:58]} 4. h4 {[%clk 0:03:00]}  h5 {[%clk 0:02:57]} 5. c4 {[%clk 0:02:59]}  Bxb1 {[%clk 0:02:53]} 6. Rxb1 {[%clk 0:02:58]}  e6 {[%clk 0:02:54]} 7. Nf3 {[%clk 0:02:47]}  Bb4+ {[%clk 0:02:49]} 8. Bd2 {[%clk 0:02:46]}  Qa5 {[%clk 0:02:48]} 9. Bxb4 {[%clk 0:02:36]}  Qxb4+ {[%clk 0:02:49]} 10. Qd2 {[%clk 0:02:34]}  Qxd2+ {[%clk 0:02:49]} 11. Nxd2 {[%clk 0:02:35]}  Ne7 {[%clk 0:02:50]} 12. Bd3 {[%clk 0:02:16]}  Nd7 {[%clk 0:02:50]} 13. O-O {[%clk 0:02:11]}  Rc8 {[%clk 0:02:44]} 14. c5 {[%clk 0:02:09]}  g6 {[%clk 0:02:35]} 15. b4 {[%clk 0:02:07]}  Nf5 {[%clk 0:02:28]} 16. Bxf5 {[%clk 0:02:07]}  gxf5 {[%clk 0:02:28]} 17. a4 {[%clk 0:02:06]}  Ke7 {[%clk 0:02:19]} 18. b5 {[%clk 0:02:04]}  b6 {[%clk 0:02:08]} 19. cxb6 {[%clk 0:01:59]}  axb6 {[%clk 0:02:06]} 20. bxc6 {[%clk 0:01:55]}  Rxc6 {[%clk 0:02:07]} 21. Rb2 {[%clk 0:01:36]}  Ra8 {[%clk 0:02:06]} 22. Ra1 {[%clk 0:01:32]}  Rc3 {[%clk 0:02:04]} 23. Kf1 {[%clk 0:01:26]}  f6 {[%clk 0:01:53]} 24. f4 {[%clk 0:01:17]}  fxe5 {[%clk 0:01:48]} 25. fxe5 {[%clk 0:01:18]}  Rd3 {[%clk 0:01:44]} 26. Nf3 {[%clk 0:01:13]}  Rc3 {[%clk 0:01:45]} 27. Ke2 {[%clk 0:01:08]}  Rc4 {[%clk 0:01:43]} 28. Kd3 {[%clk 0:01:04]}  Rcxa4 {[%clk 0:01:41]} 29. Rxa4 {[%clk 0:01:02]}  Rxa4 {[%clk 0:01:42]} 30. Rb3 {[%clk 0:00:57]}  Ra2 {[%clk 0:01:37]} 31. Nd2 {[%clk 0:00:56]}  Kd8 {[%clk 0:01:29]} 32. Rb1 {[%clk 0:00:46]}  Kc7 {[%clk 0:01:23]} 33. Rc1+ {[%clk 0:00:44]}  Kb7 {[%clk 0:01:23]} 34. Rf1 {[%clk 0:00:43]}  b5 {[%clk 0:01:19]} 35. Rb1 {[%clk 0:00:38]}  Kb6 {[%clk 0:01:17]} 36. Rc1 {[%clk 0:00:38]}  Nb8 {[%clk 0:01:07]} 37. Rc8 {[%clk 0:00:37]}  Nc6 {[%clk 0:01:07]} 38. Re8 {[%clk 0:00:37]}  Ra3+ {[%clk 0:01:06]} 39. Kc2 {[%clk 0:00:33]}  Nxd4+ {[%clk 0:01:07]} 40. Kb2 {[%clk 0:00:34]}  Rd3 {[%clk 0:01:07]} 41. Nf3 {[%clk 0:00:33]}  Nxf3 {[%clk 0:01:05]} 42. Rxe6+ {[%clk 0:00:33]}  Kc5 {[%clk 0:01:04]} 43. gxf3 {[%clk 0:00:34]}  Rxf3 {[%clk 0:01:05]} 44. Rh6 {[%clk 0:00:33]}  Re3 {[%clk 0:01:03]} 45. e6 {[%clk 0:00:32]}  Kd6 {[%clk 0:00:50]} 46. Rxh5 {[%clk 0:00:26]}  Kxe6 {[%clk 0:00:50]} 47. Rh6+ {[%clk 0:00:26]}  Ke5 {[%clk 0:00:49]} 48. Rb6 {[%clk 0:00:23]}  f4 {[%clk 0:00:50]} 49. Rxb5 {[%clk 0:00:23]}  f3 {[%clk 0:00:50]} 50. Rb8 {[%clk 0:00:21]}  Re4 {[%clk 0:00:41]} 51. Kc2 {[%clk 0:00:20]}  f2 {[%clk 0:00:35]} 52. Re8+ {[%clk 0:00:19]}  Kd4 {[%clk 0:00:36]} 53. Rf8 {[%clk 0:00:18]}  Ke3 {[%clk 0:00:36]} 54. Kd1 {[%clk 0:00:18]}  Rd4+ {[%clk 0:00:31]} 55. Kc2 {[%clk 0:00:18]}  Rf4 {[%clk 0:00:31]} 56. Re8+ {[%clk 0:00:17]}  Kf3 {[%clk 0:00:31]} 0-1


[Site "https://www.chess.com"]